fUSD/lending_fUSD_20250521
["ID","MTS","AMOUNT","RATE_DAILY","PERIOD"]
[361851277,1747839144180,420.0,0.000423,120]
[361851278,1747839144477,1544.81,0.000423,120]
[361851279,1747839144527,512.21,0.000423,120]
[361851280,1747839144579,420.0,0.000423,120]
[361851281,1747839144621,1544.81,0.000423,120]
[361851282,1747839144662,512.21,0.000423,120]
[361851283,1747839144717,152.94962738,0.000423,120]
[361851284,1747839144814,512.21,0.000423,120]
[361851285,1747839144855,1544.81,0.000423,120]
[361851286,1747839145062,1544.81,0.000423,120]
[361851287,1747839145303,1544.81,0.000423,120]
[361851288,1747839145420,512.21,0.000423,120]
[361851289,1747839145593,1544.81,0.000423,120]
[361851290,1747839145677,512.21,0.000423,120]
[361851291,1747839145802,1544.81,0.000423,120]
[361851292,1747839145923,512.21,0.000423,120]
[361851293,1747839145995,420.0,0.000423,120]
[361851294,1747839146035,1544.81,0.000423,120]
[361851295,1747839146171,512.21,0.000423,120]
[361851296,1747839146256,420.0,0.000423,120]
[361851297,1747839146296,1407.33464845,0.000423,120]
[361851317,1747839869567,499.72,0.00027397,120]
[361851320,1747840166108,-153.09,0.00013699,2]
[361851321,1747840166131,-200.0,0.00019249,2]
[361851322,1747840166153,-200.0,0.00020523,2]
[361851323,1747840166173,-200.0,0.00021437,2]
[361851324,1747840166194,-200.0,0.00023432,2]
[361851325,1747840166214,-300.0,0.000248,30]
[361851326,1747840166236,-299.31123528,0.00026004,2]
[361851327,1747840166256,-172.02,0.00026004,2]
[361851328,1747840166277,-350.06153372,0.00028571,2]
[361851329,1747840185931,356.68888242,0.00028571,2]
[361851330,1747840186987,121.38336798,0.00028571,2]
[361851345,1747840232375,-500.0,0.00027,3]
[361851346,1747840232386,-200.0,0.00027786,117]
[361851347,1747840232396,-56.96107323,0.00028571,2]
[361851348,1747840232407,-200.0,0.0002969,117]
[361851349,1747840232417,-200.0,0.000297,117]
[361851350,1747840232426,-1143.38,0.00030365,2]
[361851351,1747840232435,-207.0,0.0003115,2]
[361851352,1747840232444,-302.04,0.0003128,2]
[361851353,1747840232454,-305.16,0.00031365,2]
[361851354,1747840232464,-1357.012805,0.00031817,2]
[361851355,1747840232475,-2817.11,0.00031977,2]
[361851356,1747840232486,-325.0,0.00032,120]
[361851357,1747840232496,-1600.0,0.00032054,3]
[361851358,1747840232506,-400.0,0.00032054,3]
[361851359,1747840232516,-805.46,0.00032055,2]
[361851360,1747840232526,-805.46,0.00032055,2]
[361851361,1747840232536,-9733.61,0.0003209,2]
[361851362,1747840232547,-3898.11,0.00032094,120]
[361851363,1747840232557,-1000.0,0.00032104,2]
[361851364,1747840232566,-150.0,0.00032133,2]
[361851365,1747840232576,-164.87,0.00032142,2]
[361851366,1747840232586,-1360.89,0.00032155,2]
[361851367,1747840232596,-875.28,0.00032165,120]
[361851368,1747840232606,-200.0,0.00032176,2]
[361851369,1747840232616,-168.89,0.0003252,2]
[361851370,1747840232626,-4000.0,0.00032524,2]
[361851371,1747840232636,-200.0,0.00032525,2]
[361851372,1747840232647,-2850.85,0.00032539,2]
[361851373,1747840232659,-6713.08,0.00032539,2]
[361851374,1747840232670,-461.05,0.00032541,2]
[361851375,1747840232680,-10764.76949978,0.00032542,2]
[361851376,1747840232693,-684.71908266,0.00032542,2]
[361851377,1747840232743,-267.59430731,0.00032542,2]
[361851378,1747840232755,-458.11714593,0.00032542,2]
[361851379,1747840232767,-11724.79996432,0.00032542,2]
[361851380,1747840232778,-1295.06,0.00032581,2]
[361851381,1747840232788,-1143.38,0.00032629,2]
[361851382,1747840232798,-862.125819,0.00032671,4]
[361851383,1747840232809,-2647.728,0.00032866,33]
[361851384,1747840232820,-173.07525949,0.00032866,33]
[361851385,1747840232831,-204.980762,0.00032876,5]
[361851386,1747840232842,-540.416802,0.00032876,5]
[361851387,1747840232853,-540.416802,0.00032876,5]
[361851388,1747840232863,-540.416802,0.00032876,5]
[361851389,1747840232873,-208.19560805,0.000329,27]
[361851390,1747840232884,-1204.574,0.00033,7]
[361851391,1747840232898,-701.83018114,0.00033014,2]
[361851392,1747840232931,-269.29981886,0.00033014,2]
[361851393,1747840232942,-162.56554178,0.0003309,2]
[361851394,1747840232954,-645.47365822,0.0003309,2]
[361851395,1747840232964,-200.0,0.00033124,3]
[361851396,1747840232974,-540.416802,0.0003315,5]
[361851397,1747840232985,-540.416802,0.0003315,5]
[361851398,1747840232995,-8283.347,0.00033324,2]
[361851399,1747840233005,-1000.0,0.00033324,2]
[361851400,1747840233016,-1000.0,0.000334,7]
[361851401,1747840233026,-166.35,0.00033412,2]
[361851402,1747840233037,-500.0,0.00033424,2]
[361851403,1747840233048,-540.416802,0.00033424,5]
[361851404,1747840233058,-540.416802,0.00033424,5]
[361851405,1747840233069,-500.0,0.00033451,2]
[361851406,1747840233079,-500.0,0.00033479,2]
[361851407,1747840233089,-300.91,0.00033487,2]
[361851408,1747840233100,-300.67,0.00033487,2]
[361851409,1747840233111,-1000.0,0.000335,7]
[361851410,1747840233122,-189.53857222,0.00033506,2]
[361851411,1747840233132,-303.88,0.00033531,2]
[361851412,1747840233143,-301.6,0.00033533,2]
[361851413,1747840233153,-302.21,0.00033542,2]
[361851414,1747840233164,-300.89,0.00033542,2]
[361851415,1747840233175,-300.91,0.00033542,2]
[361851416,1747840233185,-8868.53080166,0.0003362,30]
[361851417,1747840233196,-3317.92381586,0.0003362,30]
[361851418,1747840233206,-304.65,0.00033648,2]
[361851419,1747840233217,-301.28,0.00033648,2]
[361851420,1747840233227,-301.22,0.00033648,2]
[361851421,1747840233238,-305.1,0.00033648,2]
[361851422,1747840233249,-300.44,0.00033648,2]
[361851423,1747840233259,-305.69,0.00033648,2]
[361851424,1747840233269,-302.95,0.00033648,2]
[361851425,1747840233279,-305.79,0.00033648,2]
[361851426,1747840233289,-540.416802,0.00033698,5]
[361851427,1747840233301,-1000.0,0.00033772,2]
[361851428,1747840233311,-1755.1647,0.00033772,2]
[361851429,1747840233321,-1524.85749065,0.00033773,2]
[361851430,1747840233331,-207.0,0.00033773,7]
[361851431,1747840233341,-455.57,0.00033777,120]
[361851432,1747840233351,-300.19,0.00033802,2]
[361851433,1747840233361,-968.75404415,0.00033872,32]
[361851434,1747840233372,-67481.76543101,0.00033872,2]
[361851435,1747840233694,-723.31197295,0.00033872,2]
[361851436,1747840233707,-23170.61589604,0.00033872,2]
[361851437,1747840233718,-500.0,0.00033873,5]
[361851438,1747840233729,-500.0,0.00033873,5]
[361851439,1747840233740,-500.58352484,0.00033873,5]
[361851440,1747840233751,-500.0,0.00033873,5]
[361851441,1747840233762,-348.95609561,0.00033873,5]
[361851442,1747840233776,-151.04390439,0.00033873,5]
[361851443,1747840233788,-300.75,0.00033876,2]
[361851444,1747840233799,-1948.36641722,0.00033945,2]
[361851445,1747840233813,-9714.63358278,0.00033945,2]
[361851446,1747840233825,-540.416802,0.00033972,5]
[361851447,1747840233836,-600.0,0.00034,120]
[361851448,1747840233848,-900.0,0.00034,35]
[361851449,1747840233860,-500.0,0.00034126,2]
[361851450,1747840233871,-7250.0,0.00034246,5]
[361851451,1747840233882,-540.416802,0.00034246,5]
[361851452,1747840233893,-208.19560799,0.00034264,30]
[361851453,1747840233906,-500.0,0.00034409,2]
[361851454,1747840233918,-500.0,0.00034421,5]
[361851455,1747840233928,-301.19,0.00034424,2]
[361851456,1747840233940,-1524.85749063,0.00034444,2]
[361851457,1747840233951,-540.416802,0.0003452,5]
[361851458,1747840233962,-150.0,0.00034521,2]
[361851459,1747840233973,-300.0,0.00034521,2]
[361851460,1747840233985,-150.0,0.00034521,2]
[361851461,1747840233996,-2313.77,0.00034521,2]
[361851462,1747840234007,-453.23,0.00034521,2]
[361851463,1747840234018,-150.0,0.00034521,2]
[361851464,1747840234029,-150.0,0.00034521,2]
[361851465,1747840234040,-150.0,0.00034521,2]
[361851466,1747840234050,-150.0,0.00034521,2]
[361851467,1747840234061,-355.45,0.00034521,2]
[361851468,1747840234071,-453.23,0.00034521,2]
[361851469,1747840234082,-150.0,0.00034521,2]
[361851470,1747840234093,-150.0,0.00034521,2]
[361851471,1747840234103,-500.0,0.00034547,2]
[361851472,1747840234114,-755.0,0.00034616,3]
[361851473,1747840234124,-509.65215358,0.00034718,2]
[361851474,1747840234135,-540.416802,0.00034794,5]
[361851475,1747840234146,-1143.38,0.00034893,2]
[361851476,1747840234157,-168.89,0.00034959,2]
[361851477,1747840234167,-1000.0,0.00035,4]
[361851478,1747840234177,-851.315,0.00035037,2]
[361851479,1747840234189,-6834.0,0.00035037,2]
[361851480,1747840234199,-4047.0,0.00035037,2]
[361851481,1747840234209,-154.0,0.00035037,2]
[361851482,1747840234219,-540.416802,0.00035068,5]
[361851483,1747840234230,-1524.85749063,0.00035114,2]
[361851484,1747840234240,-540.416802,0.00035342,5]
[361851485,1747840234250,-150.0,0.00035342,2]
[361851486,1747840234261,-162.8,0.00035342,2]
[361851487,1747840234271,-453.23,0.00035342,2]
[361851488,1747840234281,-162.8,0.00035342,2]
[361851489,1747840234291,-353.35,0.00035342,2]
[361851490,1747840234302,-353.35,0.00035342,2]
[361851491,1747840234313,-300.98,0.00035342,2]
[361851492,1747840234323,-162.8,0.00035342,2]
[361851493,1747840234333,-170.1,0.00035342,2]
[361851494,1747840234343,-162.8,0.00035342,2]
[361851495,1747840234353,-162.8,0.00035342,2]
[361851496,1747840234363,-162.8,0.00035342,2]
[361851497,1747840234373,-613.69,0.00035342,2]
[361851498,1747840234383,-259.37,0.00035342,2]
[361851499,1747840234393,-162.8,0.00035342,2]
[361851500,1747840234403,-269.796,0.00035413,2]
[361851501,1747840234415,-150.212,0.0003544,2]
[361851502,1747840234424,-176.43,0.00035445,2]
[361851503,1747840234435,-427.98,0.00035455,2]
[361851504,1747840234445,-5493.98,0.00035455,30]
[361851505,1747840234456,-192.836,0.00035468,2]
[361851506,1747840234467,-274.452,0.00035468,2]
[361851507,1747840234477,-155.008,0.00035468,2]
[361851508,1747840234488,-203.436,0.00035468,2]
[361851509,1747840234498,-261.117,0.00035468,2]
[361851510,1747840234508,-935.0,0.00035468,2]
[361851511,1747840234518,-1309.0,0.00035468,2]
[361851512,1747840234528,-646.169,0.00035468,2]
[361851513,1747840234541,-803.0,0.00035468,2]
[361851514,1747840234563,-554.0,0.00035468,2]
[361851515,1747840234585,-585.0,0.00035468,2]
[361851516,1747840234607,-921.0,0.00035468,2]
[361851517,1747840234628,-1460.0,0.00035468,2]
[361851518,1747840234648,-1258.0,0.00035468,2]
[361851519,1747840234671,-1150.0,0.00035468,2]
[361851520,1747840234694,-154.0,0.000355,5]
[361851521,1747840234718,-300.00590422,0.000355,2]
[361851522,1747840234740,-3500.0,0.000355,4]
[361851523,1747840234762,-2294.8985657,0.000355,7]
[361851524,1747840234784,-808.0392,0.0003559,2]
[361851525,1747840234805,-8788.11447687,0.00035596,3]
[361851526,1747840234828,-1000.0,0.00035599,2]
[361851527,1747840234841,-150.0,0.000356,24]
[361851528,1747840234852,-416.67,0.000356,2]
[361851529,1747840234862,-250.0,0.00035623,2]
[361851530,1747840234873,-208.19560799,0.00035627,33]
[361851531,1747840234883,-1524.85749063,0.00035785,2]
[361851532,1747840234893,-200.0,0.00035787,120]
[361851533,1747840234904,-223.12053409,0.00035789,2]
[361851534,1747840234919,-678.2091357,0.0003587,2]
[361851535,1747840234929,-8788.11447687,0.00035879,3]
[361851536,1747840234940,-500.0,0.00035889,60]
[361851537,1747840234950,-500.0,0.00035889,60]
[361851538,1747840234960,-500.0,0.00035889,60]
[361851539,1747840234970,-500.0,0.00035889,60]
[361851540,1747840234980,-500.0,0.00035889,60]
[361851541,1747840234991,-716.19965943,0.00035964,2]
[361851542,1747840235002,-11552.3823,0.00036,120]
[361851543,1747840235012,-600.0,0.00036,120]
[361851544,1747840235022,-1000.0,0.00036118,2]
[361851545,1747840235033,-43940.5723844,0.00036144,3]
[361851546,1747840235043,-70304.915815,0.00036154,3]
[361851547,1747840235053,-176.43,0.00036154,2]
[361851548,1747840235063,-8788.11447687,0.00036154,3]
[361851549,1747840235073,-57183.69651304,0.00036164,2]
[361851550,1747840235087,-89763.34265891,0.00036164,2]
[361851551,1747840235096,-150.34,0.00036164,2]
[361851552,1747840235106,-170.1,0.00036164,2]
[361851553,1747840235117,-325.48,0.00036164,2]
[361851554,1747840235127,-162.8,0.00036164,2]
[361851555,1747840235137,-150.34,0.00036164,2]
[361851556,1747840235146,-162.8,0.00036164,2]
[361851557,1747840235157,-166.25,0.00036164,2]
[361851558,1747840235168,-150.34,0.00036164,2]
[361851559,1747840235178,-300.64,0.00036164,2]
[361851560,1747840235187,-150.34,0.00036164,2]
[361851561,1747840235197,-875.28,0.00036185,120]
[361851562,1747840235207,-207.0,0.00036396,12]
[361851563,1747840235217,-716.19965937,0.00036401,2]
[361851564,1747840235227,-1524.85749063,0.00036455,2]
[361851565,1747840235237,-250.56002121,0.000366,30]
[361851566,1747840235247,-223.12053407,0.00036662,2]
[361851567,1747840235256,-8788.11447687,0.00036692,4]
[361851568,1747840235266,-500.0,0.00036711,60]
[361851569,1747840235276,-716.19965937,0.00036839,2]
[361851570,1747840235286,-435.4217,0.00036888,7]
[361851571,1747840235296,-866.07728985,0.00036903,7]
[361851572,1747840235306,-5957.80162572,0.0003698,4]
[361851573,1747840235318,-11618.42732798,0.0003698,4]
[361851574,1747840235328,-150.34,0.00036986,2]
[361851575,1747840235339,-353.35,0.00036986,2]
[361851576,1747840235349,-353.35,0.00036986,2]
[361851577,1747840235359,-353.35,0.00036986,2]
[361851578,1747840235369,-353.35,0.00036986,2]
[361851579,1747840235379,-353.35,0.00036986,2]
[361851580,1747840235389,-353.35,0.00036986,2]
[361851581,1747840235398,-353.35,0.00036986,2]
[361851582,1747840235410,-706.59,0.00036986,2]
[361851583,1747840235420,-353.35,0.00036986,2]
[361851584,1747840235430,-8788.11447687,0.0003699,4]
[361851585,1747840235439,-208.19560799,0.00036991,35]
[361851586,1747840235449,-20000.0,0.00037,120]
[361851587,1747840235459,-1000.0,0.00037,21]
[361851588,1747840235469,-1000.0,0.00037,8]
[361851589,1747840235479,-227.0,0.0003705,2]
[361851590,1747840235488,-1524.85749063,0.00037126,2]
[361851591,1747840235498,-1143.38,0.00037157,2]
[361851592,1747840235508,-214.99019679,0.000372,120]
[361851593,1747840235517,-5548.0,0.000372,5]
[361851594,1747840235528,-716.19965937,0.00037276,2]
[361851595,1747840235537,-8788.11447687,0.0003736,4]
[361851596,1747840235547,-400.0,0.0003737,2]
[361851597,1747840235558,-400.0,0.0003737,2]
[361851598,1747840235567,-1000.0,0.0003737,7]
[361851599,1747840235578,-1000.0,0.00037389,7]
[361851600,1747840235587,-168.89,0.00037398,2]
[361851601,1747840235597,-164.93,0.00037465,2]
[361851602,1747840235607,-8788.11447687,0.0003748,4]
[361851603,1747840235617,-157.66,0.000375,2]
[361851604,1747840235626,-451.67,0.000375,2]
[361851605,1747840235636,-267.17,0.000375,2]
[361851606,1747840235646,-11208.61,0.000375,2]
[361851607,1747840235658,-1056.54,0.000375,2]
[361851608,1747840235668,-8788.11447687,0.00037514,4]
[361851609,1747840235678,-455.57,0.0003753,120]
[361851610,1747840235688,-223.12053407,0.00037535,2]
[361851611,1747840235697,-1250.02,0.000376,7]
[361851612,1747840235707,-152.0,0.00037612,3]
[361851613,1747840235717,-716.19965937,0.00037713,2]
[361851614,1747840235727,-8788.11447687,0.00037786,4]
[361851615,1747840235736,-1524.85749063,0.00037796,2]
[361851616,1747840235748,-8788.11447687,0.00037798,4]
[361851617,1747840235758,-202.03085061,0.00037807,60]
[361851618,1747840235767,-5407.43046831,0.00037808,7]
[361851619,1747840235777,-1271.78,0.00037808,2]
[361851620,1747840235787,-160.0,0.000379,23]
[361851621,1747840235797,-387.68,0.000379,14]
[361851622,1747840235807,-700.0,0.000379,13]
[361851623,1747840235817,-1000.0,0.00037958,7]
[361851624,1747840235827,-1000.0,0.00037967,7]
[361851625,1747840235836,-400.0,0.0003797,2]
[361851626,1747840235846,-17576.2289537,0.0003798,4]
[361851627,1747840235855,-8788.11447687,0.0003799,4]
[361851628,1747840235865,-2757.80150937,0.00038,120]
[361851629,1747840235903,-2401.4356074,0.00038,120]
[361851630,1747840235918,-811.13348515,0.00038,120]
[361851631,1747840235929,-9823.600842,0.00038,120]
[361851632,1747840236023,-936.02531955,0.00038,120]
[361851633,1747840236035,-1506.98570809,0.00038,120]
[361851682,1747840238356,-178.34444122,0.00033542,2]
[361851685,1747840238396,-152.0,0.00034474,3]
[361851688,1747840238406,-882.898,0.00035037,2]
[361851691,1747840238417,-500.0,0.00035499,7]
[361851693,1747840238427,-94.27170365,0.00035499,7]
[361851696,1747840238438,-516.94744946,0.00035499,7]
[361851698,1747840238448,-540.416802,0.00035616,5]
[361851700,1747840238457,-540.416802,0.0003589,5]
[361851702,1747840238467,-540.416802,0.00036164,5]
[361851704,1747840238476,-540.416802,0.00036438,5]
[361851706,1747840238486,-540.416802,0.00036712,5]
[361851708,1747840238495,-540.416802,0.00036986,5]
[361851710,1747840238505,-540.416802,0.0003726,5]
[361851712,1747840238514,-540.416802,0.00037534,5]
[361851714,1747840238524,-540.416802,0.00037808,5]
[361851716,1747840238534,-2021.51752844,0.00038,120]
[361851718,1747840238544,-3633.8788041,0.00038,120]
[361851720,1747840238555,-361.26540913,0.00038,120]
[361851722,1747840238567,-563.31326908,0.00038,120]
[361851724,1747840238578,-428.61941707,0.00038,120]
[361851726,1747840238590,-279.08016679,0.00038,120]
[361851728,1747840238604,-1088.2689328,0.00038,120]
[361851731,1747840238620,-13645.57400103,0.00038,120]
[361851733,1747840238630,-1000.0,0.00038,22]
[361851735,1747840238640,-600.0,0.00038,120]
[361851737,1747840238649,-227.0,0.0003802,2]
[361851739,1747840238661,-2000.0,0.00038036,120]
[361851741,1747840238671,-842.0,0.00038037,2]
[361851743,1747840238682,-6834.0,0.00038037,2]
[361851745,1747840238693,-4047.0,0.00038037,2]
[361851747,1747840238703,-154.0,0.00038037,2]
[361851749,1747840238714,-880.0,0.00038037,2]
[361851751,1747840238725,-2640.27,0.00038082,5]
[361851753,1747840238735,-540.416802,0.00038082,5]
[361851755,1747840238744,-808.0392,0.0003809,2]
[361851757,1747840238754,-716.19965937,0.00038151,2]
[361851759,1747840238764,-158.88,0.000382,14]
[361851761,1747840238773,-1000.0,0.00038237,7]
[361851763,1747840238783,-1000.0,0.00038283,7]
[361851765,1747840238792,-208.19560799,0.00038355,38]
[361851767,1747840238802,-248.97,0.00038355,2]
[361851769,1747840238811,-150.0,0.00038355,2]
[361851771,1747840238821,-540.416802,0.00038356,5]
[361851772,1747840238831,-168.08,0.00038356,4]
[361851774,1747840238841,-153.09,0.00038356,2]
[361851776,1747840238850,-185.17481125,0.00038356,2]
[361851779,1747840238860,-223.12053407,0.00038408,2]
[361851780,1747840238870,-1524.85749063,0.00038467,2]
[361851782,1747840238880,-150.0,0.00038468,2]
[361851784,1747840238893,-150.0,0.00038468,2]
[361851786,1747840238903,-935.0,0.00038468,2]
[361851788,1747840238916,-1309.0,0.00038468,2]
[361851790,1747840238926,-799.0,0.00038468,2]
[361851792,1747840238938,-554.0,0.00038468,2]
[361851795,1747840238950,-585.0,0.00038468,2]
[361851797,1747840238959,-921.0,0.00038468,2]
[361851798,1747840238971,-1460.0,0.00038468,2]
[361851800,1747840238982,-1258.0,0.00038468,2]
[361851802,1747840238992,-1150.0,0.00038468,2]
[361851804,1747840239003,-1000.0,0.00038482,7]
[361851806,1747840239015,-1000.0,0.00038523,7]
[361851808,1747840239026,-1000.0,0.00038562,7]
[361851810,1747840239037,-716.19965937,0.00038588,2]
[361851812,1747840239048,-150.0,0.000386,120]
[361851814,1747840239058,-150.0,0.000386,120]
[361851817,1747840239068,-150.0,0.000386,120]
[361851820,1747840239078,-387.68,0.000386,14]
[361851823,1747840239088,-540.416802,0.0003863,5]
[361851825,1747840239098,-204.18,0.0003863,2]
[361851827,1747840239110,-162.8,0.0003863,2]
[361851829,1747840239122,-162.8,0.0003863,2]
[361851831,1747840239132,-162.8,0.0003863,2]
[361851833,1747840239142,-1441.14,0.00038667,30]
[361851835,1747840239152,-1441.14,0.00038667,30]
[361851838,1747840239163,-1441.14,0.00038667,30]
[361851840,1747840239173,-1441.14,0.00038667,30]
[361851842,1747840239183,-1000.0,0.0003873,7]
[361851844,1747840239192,-1000.0,0.00038748,7]
[361851846,1747840239202,-828.2248482,0.00038794,2]
[361851848,1747840239212,-157.66,0.000388,2]
[361851850,1747840239221,-451.67,0.000388,2]
[361851852,1747840239230,-267.17,0.000388,2]
[361851854,1747840239240,-11208.61,0.000388,2]
[361851856,1747840239249,-1056.54,0.000388,2]
[361851858,1747840239258,-1400.0,0.000388,14]
[361851860,1747840239268,-3918.7953,0.00038888,30]
[361851861,1747840239277,-160.0,0.000389,28]
[361851863,1747840239287,-50000.0,0.000389,120]
[361851866,1747840239298,-50000.0,0.000389,30]
[361851868,1747840239308,-151.0,0.000389,14]
[361851870,1747840239317,-1000.0,0.000389,2]
[361851872,1747840239327,-2100.0,0.000389,14]
[361851874,1747840239336,-5800.0,0.00038904,14]
[361851875,1747840239346,-822.38316658,0.00038904,14]
[361851878,1747840239355,-1121.97001789,0.00038904,14]
[361851880,1747840239365,-540.416802,0.00038904,5]
[361851881,1747840239375,-263.69,0.00038904,2]
[361851883,1747840239384,-166.35,0.00038927,2]
[361851885,1747840239394,-1441.14,0.00038941,30]
[361851886,1747840239403,-1441.14,0.00038941,30]
[361851887,1747840239418,-1000.0,0.00038962,7]
[361851889,1747840239427,-150.0,0.00038973,5]
[361851891,1747840239436,-150.0,0.00038986,7]
[361851893,1747840239446,-150.0,0.00038986,7]
[361851895,1747840239455,-150.0,0.00038986,7]
[361851897,1747840239464,-261.33562524,0.00038986,7]
[361851898,1747840239473,-150.0,0.00038986,7]
[361851900,1747840239483,-243.74554121,0.00038986,7]
[361851901,1747840239493,-150.0,0.00038986,7]
[361851902,1747840239502,-150.0,0.00038986,7]
[361851903,1747840239511,-154.69410446,0.00039,2]
[361851904,1747840239520,-200.0,0.00039,120]
[361851905,1747840239529,-227.0,0.00039,2]
[361851906,1747840239539,-150.0,0.00039,120]
[361851907,1747840239547,-1000.0,0.00039,25]
[361851908,1747840239557,-1000.0,0.00039,25]
[361851909,1747840239566,-48958.0,0.00039,120]
[361851910,1747840239575,-31456.23639072,0.00039,30]
[361851911,1747840239585,-4896.0,0.00039,120]
[361851912,1747840239595,-489.0,0.00039,120]
[361851913,1747840239605,-186194.99926406,0.00039,45]
[361851914,1747840239615,-619.9289386,0.00039,120]
[361851915,1747840239624,-4950.0,0.00039001,2]
[361851916,1747840239646,-25000.0,0.00039002,2]
[361851917,1747840239676,-172.02,0.00039006,2]
[361851918,1747840239711,-5000.0,0.0003901,2]
[361851919,1747840239747,-151.0,0.0003901,14]
[361851920,1747840239779,-207.0,0.00039018,17]
[361851921,1747840239802,-716.19965937,0.00039025,2]
[361851922,1747840239831,-150.0,0.00039041,2]
[361851923,1747840239861,-150.0,0.00039058,7]
[361851924,1747840239897,-5000.0,0.00039058,2]
[361851925,1747840239927,-5000.0,0.00039061,2]
[361851926,1747840239938,-500.0,0.00039076,60]
[361851927,1747840239951,-1000.0,0.00039115,7]
[361851928,1747840239962,-1000.0,0.0003912,7]
[361851929,1747840239972,-2500.0,0.00039124,2]
[361851930,1747840239982,-823.19,0.00039127,2]
[361851931,1747840239992,-5000.0,0.00039129,2]
[361851932,1747840240002,-150.0,0.00039129,7]
[361851933,1747840240012,-150.0,0.00039129,7]
[361851934,1747840240021,-1524.85749063,0.00039137,2]
[361851935,1747840240031,-1051.03766912,0.00039148,120]
[361851936,1747840240041,-1000.0,0.00039156,7]
[361851937,1747840240051,-4076.88,0.0003917,2]
[361851938,1747840240061,-5000.0,0.00039174,2]
[361851939,1747840240071,-5000.0,0.00039188,2]
[361851940,1747840240080,-1000.0,0.00039191,7]
[361851941,1747840240090,-18787.8,0.000392,14]
[361851942,1747840240099,-387.68,0.000392,14]
[361851943,1747840240109,-150.0,0.000392,7]
[361851944,1747840240119,-150.0,0.00039203,2]
[361851945,1747840240128,-1441.14,0.00039215,30]
[361851946,1747840240138,-1441.14,0.00039215,30]
[361851947,1747840240148,-25000.0,0.00039239,2]
[361851948,1747840240157,-1000.0,0.0003926,7]
[361851949,1747840240168,-150.0,0.00039272,7]
[361851950,1747840240177,-1429.4,0.00039292,2]
[361851952,1747840240187,-25000.0,0.00039303,2]
[361851953,1747840240196,-1000.0,0.00039303,7]
[361851954,1747840240207,-150.0,0.00039318,2]
[361851955,1747840240218,-5000.0,0.00039319,2]
[361851956,1747840240227,-5000.0,0.00039333,2]
[361851957,1747840240236,-150.0,0.00039343,7]
[361851958,1747840240245,-150.0,0.00039347,2]
[361851959,1747840240255,-2500.0,0.00039353,2]
[361851960,1747840240264,-25000.0,0.00039357,2]
[361851962,1747840240273,-828.2248482,0.00039371,2]
[361851964,1747840240283,-150.0,0.00039379,7]
[361851966,1747840240292,-150.0,0.00039379,7]
[361851968,1747840240301,-150.0,0.00039389,2]
[361851970,1747840240310,-150.0,0.00039415,7]
[361851972,1747840240319,-150.0,0.00039416,2]
[361851974,1747840240328,-5000.0,0.00039418,2]
[361851976,1747840240337,-1143.38,0.00039421,2]
[361851979,1747840240348,-1000.0,0.00039433,7]
[361851995,1747840240577,-5000.0,0.00039437,2]
[361851997,1747840240600,-732.01,0.00039452,2]